Cogmind - Beta 9.6 @@@ ROGUE MODE // 2020.07.23 @ 22:51:41 Player: dumbaq Result: Destroyed by as-62569 with Assembled Rifle Performance ------------- Evolutions (0) 0 Regions Visited (2) 400 Robots Destroyed (9) 45 Value Destroyed (282) 282 Prototype IDs (0) 0 Alien Tech Used (0) 0 Bonus (0) 0 TOTAL SCORE: 727 Bonus ------- None Cogmind --------- Core Integrity 0/250 Matter 282/300 Energy 252/265 System Corruption 0% Temperature Cool (225) Movement Walking (120) Location -10/Mines Parts ------- > --- POWER (1) -------- Improved Ion Engine > --- PROPULSION (2) --- Aluminum Leg Aluminum Leg > --- UTILITY (2) ------ Small Storage Unit Light Armor Plating > --- WEAPON (2) ------- Beam Cannon Heavy Assault Rifle > --- INVENTORY (6) ---- Targeting Computer Targeting Computer Targeting Computer Core Shielding Light Armor Plating Light Armor Plating Peak State ------------ > --- POWER ------------ Improved Ion Engine > --- PROPULSION ------- Light Treads Aluminum Leg > --- UTILITY ---------- Small Storage Unit Light Armor Plating > --- WEAPON ----------- Beam Cannon Heavy Assault Rifle > --- INVENTORY -------- Targeting Computer Targeting Computer Targeting Computer Core Shielding Light Armor Plating Light Armor Plating [Rating: 9] Favorites ----------- Power Light Ion Engine Engine Light Ion Engine Propulsion Aluminum Leg Treads Light Treads Leg Aluminum Leg Utility Improved Terrain Scanner Device Improved Terrain Scanner Storage Small Storage Unit Processor Seismic Analyzer Protection Light Armor Plating Weapon Small Laser Energy Gun Small Laser Energy Cannon Beam Cannon Ballistic Gun Heavy Assault Rifle Build | -11 -10 -10 ------- Run | Scr Mat Min Slots Evolved . | . . . Power . | . . . Propulsion . | . . . Utility . | . . . Weapon . | . . . Parts Attached 20 | 9 . 11 Power 4 | 1 . 3 Engine 4 | 1 . 3 Core . | . . . Reactor . | . . . Propulsion 5 | 2 . 3 Treads 1 | . . 1 Leg 4 | 2 . 2 Wheel . | . . . Hover . | . . . Flight . | . . . Utility 6 | 4 . 2 Device 2 | 2 . . Storage 2 | 1 . 1 Processor 1 | 1 . . Hackware . | . . . Protection 1 | . . 1 Artifact . | . . . Weapon 5 | 2 . 3 Energy Gun 2 | 2 . . Energy Cannon 1 | . . 1 Ballistic Gun 2 | . . 2 Ballistic Cannon . | . . . Launcher . | . . . Special Weapon . | . . . Impact Weapon . | . . . Slashing Weapon . | . . . Piercing Weapon . | . . . Special Melee Weapon . | . . . Unidentified Prototypes . | . . . Parts Lost 6 | . . 6 Power 1 | . . 1 Propulsion 2 | . . 2 Utility 1 | . . 1 Weapon 2 | . . 2 Highest Loss Streak 6 | . . 6 Average Slot Usage (%) 96 | . 100 92 Engine 13 | . 14 13 Treads 1 | . . 3 Leg 24 | . 28 20 Device 10 | . 14 7 Storage 2 | . . 5 Processor 11 | . 14 9 Protection 2 | . . 4 Energy Gun 21 | . 28 15 Energy Cannon 2 | . . 4 Ballistic Gun 3 | . . 5 Naked Turns . | . . . Heaviest Build 20 | 11 7 20 Greatest Support 20 | 20 20 20 Greatest Overweight (x) 2 | . . 2 Average Overweight (x) . | . . . Largest Inventory Capacity 6 | 6 4 6 Average Capacity 4 | 4 4 4 Most Carried 6 | 4 4 6 Average Carried 3 | 3 4 4 Final Capacity 6 | 4 4 6 Final Carried 6 | 4 4 6 Class Distribution -------------------- 96% | Mutant 3% | Scavenger-Mutant Dominant Class ---------------- Mutant | -10/Materials Mutant | -10/Mines Resources | -11 -10 -10 ----------- Run | Scr Mat Min Matter Collected 442 | 290 . 152 Remotely 26 | 26 . . Salvage Created 405 | 116 . 289 Parts 19 | 6 . 13 Haulers Intercepted . | . . . Recyclers Shooed 1 | . . 1 Parts Field Recycled . | . . . Retrieved Matter . | . . . Parts Self-Destructed . | . . . Prevented . | . . . Kills | -11 -10 -10 ------- Run | Scr Mat Min Combat Hostiles Destroyed 6 | . . 6 Guns 5 | . . 5 Cannons 1 | . . 1 Classes Destroyed 4 | 2 . 2 Tunneler 2 | 2 . . Recycler 1 | 1 . . Grunt 4 | . . 4 Sentry 2 | . . 2 Best Kill Streak 3 | 3 . 2 Combat Bots Only 2 | . . 2 Max Kills in Single Turn 1 | 1 . 1 Gunslinging . | . . . Exploded . | . . . Melee . | . . . Uniques/NPCs Destroyed . | . . . Combat | -11 -10 -10 -------- Run | Scr Mat Min Damage Taken 929 | . . 929 Core 256 | . . 256 Absorbed by Shields . | . . . Core Remaining (%) 100 | 100 . . Volleys Fired 48 | 5 6 37 Largest 2 | 2 2 2 Hottest 90 | 90 90 90 Shots Fired 79 | 10 12 57 Gun 66 | 10 12 44 Cannon 13 | . . 13 Launcher . | . . . Special . | . . . Kinetic 25 | . . 25 Thermal 54 | 10 12 32 Explosive . | . . . Electromagnetic . | . . . Robot Hit Streak 8 | 5 3 8 Robot Miss Streak 3 | 1 2 3 Penetration Max . | . . . Secondary Targets 1 | . . 1 Max Gunslinging Chain 1 | . . 1 Shots Hit Robots 54 | 6 7 41 Core Hits 19 | 4 1 14 Critical Hits . | . . . Critical Kills . | . . . Critical Parts Destroyed . | . . . Melee Attacks . | . . . Impact . | . . . Slashing . | . . . Piercing . | . . . Sneak Attacks . | . . . Combat Hostiles . | . . . Follow-up Attacks . | . . . Damage Inflicted 665 | 72 35 558 Guns 490 | 72 35 383 Cannons 175 | . . 175 Explosions . | . . . Melee . | . . . Ramming . | . . . Kinetic 225 | . . 225 Thermal 440 | 72 35 333 Explosive . | . . . Electromagnetic . | . . . Impact . | . . . Slashing . | . . . Piercing . | . . . Highest Corruption . | . . . Average Corruption . | . . . Corruption Purged . | . . . Overload Shots . | . . . Overflow Damage . | . . . Projectiles . | . . . Explosions . | . . . Melee . | . . . Knockbacks . | . . . Impact . | . . . Kinetic . | . . . Secondary . | . . . Self-Inflicted Damage . | . . . Shots . | . . . Rammed . | . . . Targets Rammed . | . . . Kicked . | . . . Crushed . | . . . Highest Temperature 285 | 60 30 285 Average Temperature 97 | 28 17 131 Received Heat Transfer 362 | . . 362 Effects 2 | . . 2 Energy Bleed 1 | . . 1 Interference 1 | . . 1 Siege Activations . | . . . Robots Corrupted . | . . . Combat Hostiles . | . . . Parts Fried . | . . . Impact Corruptions . | . . . Robots Melted . | . . . Combat Hostiles . | . . . Parts Melted 2 | 2 . . Heat Transferred 1065 | 198 87 780 Parts Sabotaged . | . . . Parts Stolen . | . . . Parts Stripped . | . . . Power Chain Reactions . | . . . Missiles Intercepted . | . . . Alert | -11 -10 -10 ------- Run | Scr Mat Min Peak Influence 100 | 15 45 100 Average Influence 16 | 3 18 49 Maximum Alert Level . | . . . Low Security (%) 100 | 100 100 100 Level 1 . | . . . Level 2 . | . . . Level 3 . | . . . Level 4 . | . . . Level 5 . | . . . High Security . | . . . Max Security . | . . . Squads Dispatched 1 | . 1 . Investigation . | . . . Extermination . | . . . Reinforcement 1 | . 1 . Assault . | . . . Garrison . | . . . Intercept . | . . . Construction Impeded . | . . . Haulers Reinforced . | . . . Stealth | -11 -10 -10 --------- Run | Scr Mat Min Distress Signals . | . . . Communications Jammed . | . . . Distress Signals . | . . . Times Spotted 14 | . 5 9 Peak Tracking Total 3 | . 2 3 Tactical Retreats . | . . . Traps | -11 -10 -10 ------- Run | Scr Mat Min Traps Triggered . | . . . Indirectly . | . . . Trap Hack Attempts . | . . . Triggered . | . . . Disarmed . | . . . Reprogrammed . | . . . Reused . | . . . Traps Extracted . | . . . Installed . | . . . Triggered . | . . . Machines | -11 -10 -10 ---------- Run | Scr Mat Min Machines Disabled 1 | . . 1 Max in Single Turn 1 | . . 1 Machines Sabotaged . | . . . Garrisons Compromised . | . . . Overloaded Fab Kills . | . . . Fab Network Shutdowns . | . . . Hacking | -11 -10 -10 --------- Run | Scr Mat Min Machines Accessed . | . . . Terminals . | . . . Fabricators . | . . . Repair Stations . | . . . Recycling Units . | . . . Scanalyzers . | . . . Garrison Access . | . . . Total Hacks . | . . . Successful . | . . . Failed . | . . . Catastrophic . | . . . Database Lockouts . | . . . Manual . | . . . Terminals . | . . . Fabricators . | . . . Repair Stations . | . . . Recycling Units . | . . . Scanalyzers . | . . . Garrison Access . | . . . Terminal Hacks . | . . . Fabricator Hacks . | . . . Repair Station Hacks . | . . . Recycling Unit Hacks . | . . . Scanalyzer . | . . . Garrison Access Hacks . | . . . Unauthorized Hacks . | . . . Terminals . | . . . Fabricators . | . . . Repair Stations . | . . . Recycling Units . | . . . Scanalyzers . | . . . Garrison Access . | . . . Data Cores Recovered . | . . . Used . | . . . Hacking Detections . | . . . Full Trace Events . | . . . Feedback Events . | . . . Feedback Blocked . | . . . Robot Schematics Acquired . | . . . Robots Built . | . . . Matter . | . . . Time . | . . . Total Robot Build Rating . | . . . Part Schematics Acquired . | . . . Parts Built . | . . . Matter . | . . . Time . | . . . Total Part Build Rating . | . . . Parts Repaired . | . . . Time . | . . . Parts Recycled . | . . . Recycled Matter . | . . . Retrieved Matter . | . . . Retrieved Components . | . . . Parts Scanalyzed . | . . . Part Schematics Acquired . | . . . Parts Damaged . | . . . Bothacking | -11 -10 -10 ------------ Run | Scr Mat Min Used RIF Installer . | . . . Robots Hacked . | . . . Non-combat . | . . . Combat . | . . . Robot Hacks Applied . | . . . Relay Couplers Released . | . . . Robots Rewired . | . . . Allies Hacked . | . . . Hacks Repelled . | . . . Allies | -11 -10 -10 -------- Run | Scr Mat Min Total Allies . | . . . Largest Group . | . . . Highest-Rated Group . | . . . Highest-Rated Ally . | . . . Total Orders . | . . . Ally Attacks . | . . . Total Damage . | . . . Kills . | . . . Allies Corrupted . | . . . Allies Melted . | . . . Intel | -11 -10 -10 ------- Run | Scr Mat Min Robot Analysis Total . | . . . Derelict Logs Recovered 1 | . . 1 Drone Launches . | . . . Drone Recoveries . | . . . Exploration | -11 -10 -10 ------------- Run | Scr Mat Min Turns Passed 2865 | 1636 583 646 Spaces Moved 403 | 99 63 241 Core 17 | 14 . 3 Treads 59 | . . 59 Legs 327 | 85 63 179 Wheels . | . . . Hover . | . . . Flight . | . . . Fastest Speed 50 | 50 120 50 Average Speed 123 | 110 120 129 Slowest Speed 160 | 120 120 160 Overloaded Moves . | . . . Propulsion Burnouts . | . . . Robots Hopped . | . . . Cave-ins Triggered . | . . . Exploration Rate (%) 22 | 13 23 32 Regions Visited 2 Branch Regions 1 Pre-discovered Areas . | . . . Known Exits Taken . | . . . Unknown Exits Taken 2 | 1 1 . Scrap Searched 1 | . . 1 Spaces Dug . | . . . Terrain Destroyed . | . . . Melee . | . . . Projectile . | . . . AOE . | . . . Actions | -11 -10 -10 --------- Run | Scr Mat Min Total 2695 | 1615 559 521 Wait 2200 | 1492 489 219 Move 401 | 98 62 241 Hop . | . . . Pick Up 21 | 11 1 9 Fast Attach 2 | . . 2 Attach 14 | 7 . 7 Detach . | . . . Swap 4 | 2 . 2 Drop 5 | . 1 4 Fire 48 | 5 6 37 Melee . | . . . Ram . | . . . Kick . | . . . Crush . | . . . Escape Stasis . | . . . Rewire . | . . . Trap . | . . . Miscellaneous . | . . . Route ------- -11/Scrapyard -10/Materials -10/Mines History --------- Turn | Location | Event 10 | -11/Scrapyard | Discovered new exit (range 15) 1637 | -11/Scrapyard | Entered Materials 1638 | -10/Materials | Build established: Mutant 2205 | -10/Materials | Discovered new exit (range 11) 2220 | -10/Materials | Entered Mines 2238 | -10/Mines | Met a Derelict bent on vengeance 2417 | -10/Mines | Learned 2 Materials zone layouts 2618 | -10/Mines | Core integrity fell below 50% 2642 | -10/Mines | Lost 6 parts (1p2n1u2w) 2775 | -10/Mines | Assembled infested the area 2855 | -10/Mines | Core integrity fell below 20% 2866 | -10/Mines | Destroyed by as-62569 with Assembled Rifle Last Messages --------------- 02740_ G-34 Mercenary destroyed. 02741_ K-01 Serf collects debris. 02743_ G-47 Trooper destroyed. 02744_ K-01 Serf collects debris. 02746_ Overheating: Energy bleed (-37). 02755_ Acquired 47 matter. 02757_ Overheating: System interference. 02757_ Hvy. Assault Rifle temporarily disabled. 02758_ Acquired 45 matter. 02762_ Acquired Aluminum Leg. 02765_ Dropped Lgt. Treads. 02765_ Acquired Aluminum Leg. 02775_ ALERT: Infestation in the mines, dispatching Demolisher response squad. 02775_ Acquired 60 matter. 02811_ Searching scrap... 02811_ Found 45 Matter. 02811_ Found Propulsion Shielding. 02811_ Found Weapon Shielding. 02811_ Found Lgt. Armor Plating. Map ----- +----------------------------------------------------+ | ????????????????????????????????????????????? | | ????????????????????????????????????????????? | | ????????????????????????????????????????????? | | ????????????????????????????????????????????? | | ????????????????????????????????????????????? | | ????????????????????????????????????????????? | | ????????????????????????????????????????????? | | ????????????????????????????????????????????? | | ????????????????????????????????????????????? | | ????????????????????????????????????????????? | | ????????????????????????????????????????????? | | ????????????????????????????????????????????? | | ????????????????????????????????????????????? | | ????????????????????????????????????????????? | | ????????????????????????????????????????????? | | ????????????????????????????????????????????? | | ????????????????????????????????????????????? | | #???????????????????????????????????????????? | | ?? ? ? ?????????????????????????????????????? | | ??? ???????????????????????????????????????? | | ??????#?????????????????????????????????????? | | ????????#???????????????????????????????????? | | ????????#???????????????????????????????????? | | ???#??#??????????#=######???????????????????? | | #?#####?#????????#! a ####????????????????? | | #?######????#?????????# a@ #????????????????? | | ?## ###?????????????# ## #????????????????? | | ## #???#?#????????# ## #????????????????? | | ?# ##?##?##??###### ## ###??????????????? | | ## #####????# # #??????????????? | | # #######?# ### #??????????????? | | ####???# #?# #??????????????? | | ### ###?##?# """ #?# #??????????????? | | ##?## #####?## """ #?# #????####??????? | | ##### ###?#?## """ #?# #???## ##?????? | | ###?# #???#?## " "= #?# #???# #?????? | | #### #?###?## * #?# ##### #?????? | | ### ######## #?# ## #?????? | | # ### #?#### ### #?????? | | # ####### ##### #######?# ### #?????? | | # ###?### ### ### ## #?????? | | # #####?####### ## ! ## #?????? | | ## #?##?#####?## !% #?????? | | ### #########?#### ! ##?????? | | #### #?###?###?##?#### # #### ###??????? | | #### ####?#?##??#????? ####??## ##????????? | | ####% ###?#?#######?????#??????####?????????? | | [%##??#######?#?????????????????????????? | | ###########?####??##????????????????????????? | | ?###?#?#?#######????????????????????????????? | +----------------------------------------------------+ Best States ------------- Heat Dissipation 25 Energy Generation 12 Energy Capacity 265 Matter Stores 300 Matter Capacity 300 Sight Range 16 Terrain Scan Range 16 Terrain Scan Density 60 Armor Coverage 150 Evasion (%) 50 Recoil Reduction 1 Item Schematics ----------------- None Robot Schematics ------------------ None Fabricated ------------ Nothing Alien Tech Used ----------------- None Achievements -------------- None Challenges ------------ None Game ------ Seed GravmagDeuteriumCorpse Manual? 0 Play Time 00:10:00 Cumulative 3.2 hours Start 2020.07.23 @ 22:41:34 End 2020.07.23 @ 22:51:41 Sessions 1 Manual Loads 0 Difficulty Rogue Special Mode None Game No. 6 Rogue 6 Adventurer 0 Explorer 0 Win Type - Total 0 Types 0/0/0/0/0/0/0 Lore% 0 Gallery% 8 Achievement% 7 Wizard Run 0 Options --------- ASCII 0 Keyboard 0 Movement Mouse Keybinds 0 Fullscreen 2 Font 18/Terminus Map View 76x50 Tactical HUD 1 Map Filters NONE Filters NONE Steam 1 RUN: b5e6eb03-b446-46db-8cb8-0c10d08a984a